Cogmind - Beta 17.1 @@@ ROGUE MODE // 2026.09.02 @ 07:19:32 Player: Godsword Result: Self-destructed Performance ------------- Evolutions (2) 1000 Regions Visited (4) 800 Robots Destroyed (12) 60 Value Destroyed (153) 153 Prototype IDs (1) 20 Alien Tech Used (0) 0 Bonus (0) 0 TOTAL SCORE: 2033 Bonus ------- None Cogmind --------- Core Integrity 499/550 Matter 224/300 Energy 139/140 System Corruption 7% Temperature Cool (11) Movement Flying (115) Ox1 Location -8/Materials Parts ------- > --- POWER (1) -------- Light Deuterium Engine > --- PROPULSION (4) --- VSS Leg Improved VTOL Module > --- UTILITY (3) ------ Improved Signal Interpreter Improved Terrain Scanner > --- WEAPON (3) ------- Great Axe > --- INVENTORY (5) ---- Light Deuterium Engine Compact Matter Pod (150) Improved Light Armor Plating Improved Medium Armor Plating Great Axe Peak State ------------ > --- POWER ------------ Light Deuterium Engine > --- PROPULSION ------- VSS Leg Cesium-ion Thruster Improved VTOL Module > --- UTILITY ---------- Improved Sensor Array Improved Signal Interpreter Improved Terrain Scanner > --- WEAPON ----------- Great Axe > --- INVENTORY -------- Light Deuterium Engine Compact Matter Pod Improved Light Armor Plating Improved Medium Armor Plating Great Axe [Rating: 27] Favorites ----------- Power Light Deuterium Engine Engine Light Deuterium Engine Propulsion Hover Unit Leg VSS Leg Hover Unit Hover Unit Flight Unit VTOL Module Utility Improved Terrain Scanner Device Improved Terrain Scanner Processor Improved Signal Interpreter Weapon Small Laser Energy Gun Small Laser Energy Cannon Particle Cannon Slashing Weapon Great Axe Build | -11 -10 -9 -9 -8 ------- Run | Yrd Mat Mat Min Mat Slots Evolved 4 | . . 2 . 2 Power . | . . . . . Propulsion 2 | . . 1 . 1 Utility 1 | . . 1 . . Weapon 1 | . . . . 1 Parts Attached 19 | 4 4 2 2 7 Power 3 | . 2 1 . . Engine 3 | . 2 1 . . Core . | . . . . . Reactor . | . . . . . Propulsion 6 | . 2 . 1 3 Treads . | . . . . . Leg 1 | . . . . 1 Wheel . | . . . . . Hover 2 | . 2 . . . Flight 3 | . . . 1 2 Utility 5 | 2 . 1 . 2 Device 4 | 2 . 1 . 1 Storage . | . . . . . Processor 1 | . . . . 1 Hackware . | . . . . . Protection . | . . . . . Artifact . | . . . . . Weapon 5 | 2 . . 1 2 Energy Gun 3 | 2 . . . 1 Energy Cannon 1 | . . . 1 . Ballistic Gun . | . . . . . Ballistic Cannon . | . . . . . Launcher . | . . . . . Special Weapon . | . . . . . Impact Weapon . | . . . . . Slashing Weapon 1 | . . . . 1 Piercing Weapon . | . . . . . Special Melee Weapon . | . . . . . Unidentified Prototypes 1 | . . . . 1 Parts Lost 8 | . 3 . . 5 Power 1 | . 1 . . . Propulsion 5 | . . . . 5 Utility 1 | . 1 . . . Weapon 1 | . 1 . . . Highest Loss Streak 3 | . 2 . . 3 To Critical Strikes . | . . . . . Average Backups 2 | . . . 2 4 Power . | . . . 1 1 Propulsion . | . . . . . Utility . | . . . . 2 Weapon . | . . . . 1 Tool/Special . | . . . . . Unused Backups 8 | . 1 . . 7 Power 2 | . 1 . . 1 Propulsion . | . . . . . Utility 4 | . . . . 4 Weapon 2 | . . . . 2 Tool/Special . | . . . . . Average Slot Usage (%) 60 | . 52 48 69 60 Engine 9 | . 6 11 11 9 Hover 16 | . 16 22 22 10 Flight 3 | . . . 4 3 Device 11 | . 8 4 11 15 Processor 3 | . . . . 8 Energy Gun 9 | . 22 11 11 1 Energy Cannon 3 | . . . 9 1 Slashing Weapon 2 | . . . . 7 Peak Build Rating 27 | 8 7 9 13 27 Average Rating 11 | 2 4 6 11 18 On Entrance 6 | . 5 4 9 13 Avg Prop Armor Cover (%) 4 | . . . 3 5 Naked Turns . | . . . . . Heaviest Build 12 | 3 6 7 11 12 Greatest Support 12 | 3 12 12 12 12 Greatest Overweight (x) 2 | . . . . 2 Average Overweight (x) . | . . . . . Largest Inventory Capacity 5 | 5 5 5 5 5 Average Capacity 5 | 5 5 5 5 5 Most Carried 5 | 1 2 1 4 5 Average Carried 2 | . . . 2 4 Final Capacity 5 | 5 5 5 5 5 Final Carried 5 | 1 . 1 4 5 Class Distribution -------------------- 77% | Mutant 22% | Assassin Dominant Class ---------------- Mutant | -10/Materials Mutant | -9/Materials Mutant | -9/Mines Assassin | -8/Materials Resources | -11 -10 -9 -9 -8 ----------- Run | Yrd Mat Mat Min Mat Matter Collected 350 | 240 30 . 80 . Remotely . | . . . . . Salvage Created 329 | 171 131 . 27 . Parts 28 | 14 10 . 4 . Haulers Intercepted . | . . . . . Recyclers Shooed 1 | 1 . . . . Parts Field Recycled . | . . . . . Retrieved Matter . | . . . . . Parts Self-Destructed . | . . . . . Prevented . | . . . . . Parts Restored . | . . . . . Kills | -11 -10 -9 -9 -8 ------- Run | Yrd Mat Mat Min Mat Combat Hostiles Destroyed 2 | . 2 . . . Guns 2 | . 2 . . . Classes Destroyed 5 | 2 3 . . . Worker 2 | . 1 . 1 . Tunneler 5 | 4 . . 1 . Recycler 1 | 1 . . . . Watcher 2 | . 2 . . . Grunt 2 | . 2 . . . Best Kill Streak 4 | 4 3 . 2 . Combat Bots Only 1 | . 1 . . . Max Kills in Single Turn 2 | 2 1 . 1 . Gunslinging . | . . . . . Exploded . | . . . . . Melee . | . . . . . Uniques/NPCs Destroyed . | . . . . . Combat | -11 -10 -9 -9 -8 -------- Run | Yrd Mat Mat Min Mat Hostile Shots Fired 43 | . 31 . . 12 Missed 12 | . 8 . . 4 Hits 31 | . 23 . . 8 Projectile 31 | . 23 . . 8 Damage Taken 512 | . 288 . . 224 Core 129 | . 78 . . 51 Absorbed by Shields . | . . . . . Core Remaining (%) 89 | 100 68 . 100 . Volleys Fired 40 | 20 14 . 6 . Largest 2 | 2 2 . 2 . Hottest 108 | 80 80 . 108 . Shots Fired 74 | 40 22 . 12 . Gun 68 | 40 22 . 6 . Cannon 6 | . . . 6 . Launcher . | . . . . . Special . | . . . . . Kinetic . | . . . . . Thermal 74 | 40 22 . 12 . Explosive . | . . . . . Electromagnetic . | . . . . . Robot Hit Streak 7 | 7 4 . 3 . Robot Miss Streak 4 | 4 1 . 2 . Penetration Max . | . . . . . Secondary Targets . | . . . . . Shots Hit Robots 45 | 24 15 . 6 . Core Hits 16 | 6 8 . 2 . Critical Kills . | . . . . . Critical Parts Destroyed . | . . . . . Critical Strikes . | . . . . . Melee Attacks 5 | . . . . 5 Impact . | . . . . . Slashing 5 | . . . . 5 Piercing . | . . . . . Sneak Attacks . | . . . . . Combat Hostiles . | . . . . . Follow-up Attacks . | . . . . . Damage Inflicted 522 | 259 160 . 103 . Guns 440 | 259 160 . 21 . Cannons 82 | . . . 82 . Explosions . | . . . . . Melee . | . . . . . Ramming . | . . . . . Kinetic . | . . . . . Thermal 522 | 259 160 . 103 . Explosive . | . . . . . Electromagnetic . | . . . . . Impact . | . . . . . Slashing . | . . . . . Piercing . | . . . . . Highest Corruption 7 | . . . . 7 Average Corruption 7 | . . . . 7 Corruption Purged . | . . . . . Corruption Blocked . | . . . . . Effects 5 | . . . . 5 Message Errors 1 | . . . . 1 Matter Fused 2 | . . . . 2 Data Loss (minor) 2 | . . . . 2 Overload Shots . | . . . . . Overflow Damage . | . . . . . Projectiles . | . . . . . Explosions . | . . . . . Melee . | . . . . . Knockbacks . | . . . . . Impact . | . . . . . Kinetic . | . . . . . Secondary . | . . . . . Self-Inflicted Damage . | . . . . . Shots . | . . . . . Rammed . | . . . . . Targets Rammed . | . . . . . Kicked . | . . . . . Crushed . | . . . . . Highest Temperature 192 | 42 42 . 192 1 Average Temperature 39 | 17 14 . 107 1 Received Heat Transfer 234 | . 162 . . 72 Siege Activations . | . . . . . Martial Activations . | . . . . . Shielding Activations . | . . . . . Robots Disrupted . | . . . . . Combat Hostiles . | . . . . . Robots Corrupted . | . . . . . Combat Hostiles . | . . . . . Parts Fried . | . . . . . Impact Corruptions . | . . . . . Robots Melted . | . . . . . Combat Hostiles . | . . . . . Parts Melted 2 | . 2 . . . Heat Transferred 1148 | 600 350 . 198 . Parts Sabotaged . | . . . . . Parts Stolen . | . . . . . Parts Stripped . | . . . . . Power Chain Reactions . | . . . . . Alert | -11 -10 -9 -9 -8 ------- Run | Yrd Mat Mat Min Mat Maximum Alert Level . | . . . . . Low Security (%) 100 | 100 100 100 100 100 Level 1 . | . . . . . Level 2 . | . . . . . Level 3 . | . . . . . Level 4 . | . . . . . Level 5 . | . . . . . High Security . | . . . . . Max Security . | . . . . . Peak Influence 30 | 10 30 8 10 15 Initial 8 | . 6 8 . . Average 2 | 2 9 2 . . Influence Increases 122 | 25 69 . 10 18 Destroy 0b10 Robot/C 40 | . 40 . . . Destroy 0b10 Robot/NC 50 | 25 15 . 10 . Destroy Leader 14 | . 14 . . . Disable Machine 15 | . . . . 15 Destroy Structure 3 | . . . . 3 Influence Decreases 122 | 15 59 20 10 18 Entered New Map 16 | . 4 12 . . Time Decay 84 | 15 41 8 10 10 Lost Part 22 | . 14 . . 8 Squads Dispatched 2 | . 1 . . 1 Investigation 1 | . . . . 1 Extermination . | . . . . . Reinforcement 1 | . 1 . . . Assault . | . . . . . Garrison . | . . . . . Intercept . | . . . . . Searches Triggered . | . . . . . Construction Impeded . | . . . . . Haulers Reinforced . | . . . . . Active Scanning Responses . | . . . . . Cargo Convoy Interrupts . | . . . . . Stealth | -11 -10 -9 -9 -8 --------- Run | Yrd Mat Mat Min Mat Distress Signals 2 | . 1 . . 1 Communications Jammed . | . . . . . Distress Signals . | . . . . . Times Spotted 10 | . 7 . . 3 Peak Tracking Total 5 | . 5 . . 3 Tactical Retreats . | . . . . . Traps | -11 -10 -9 -9 -8 ------- Run | Yrd Mat Mat Min Mat Traps Triggered 1 | . . . . 1 Indirectly . | . . . . . Trap Hack Attempts . | . . . . . Triggered . | . . . . . Disarmed . | . . . . . Reprogrammed . | . . . . . Reused . | . . . . . Traps Extracted . | . . . . . Installed . | . . . . . Triggered . | . . . . . Machines | -11 -10 -9 -9 -8 ---------- Run | Yrd Mat Mat Min Mat Machines Disabled 1 | . . . . 1 Max in Single Turn 1 | . . . . 1 Machines Repaired . | . . . . . Machines Dismantled . | . . . . . Machines Sabotaged . | . . . . . Overloaded Fab Kills . | . . . . . Hacking | -11 -10 -9 -9 -8 --------- Run | Yrd Mat Mat Min Mat Machines Accessed 1 | . 1 . . . Terminals 1 | . 1 . . . Fabricators . | . . . . . Repair Stations . | . . . . . Recycling Units . | . . . . . Scanalyzers . | . . . . . Garrison Access . | . . . . . Total Hacks 3 | . 3 . . . Successful . | . . . . . Failed 3 | . 3 . . . Catastrophic 2 | . 2 . . . Database Lockouts . | . . . . . Manual 3 | . 3 . . . Terminals 3 | . 3 . . . Fabricators . | . . . . . Repair Stations . | . . . . . Recycling Units . | . . . . . Scanalyzers . | . . . . . Garrison Access . | . . . . . Terminal Hacks . | . . . . . Fabricator Hacks . | . . . . . Repair Station Hacks . | . . . . . Recycling Unit Hacks . | . . . . . Scanalyzer . | . . . . . Garrison Access Hacks . | . . . . . Unauthorized Hacks . | . . . . . Terminals . | . . . . . Fabricators . | . . . . . Repair Stations . | . . . . . Recycling Units . | . . . . . Scanalyzers . | . . . . . Garrison Access . | . . . . . Data Cores Recovered . | . . . . . Used . | . . . . . Hacking Detections 1 | . 1 . . . Full Trace Events . | . . . . . Feedback Events . | . . . . . Feedback Blocked . | . . . . . Robot Schematics Acquired . | . . . . . Robots Built . | . . . . . Authchips . | . . . . . Time . | . . . . . Total Robot Build Rating . | . . . . . Part Schematics Acquired . | . . . . . Parts Built . | . . . . . Authchips . | . . . . . Time . | . . . . . Total Part Build Rating . | . . . . . Part Studies Acquired . | . . . . . Parts Repaired . | . . . . . Time . | . . . . . Parts Recycled . | . . . . . Recycled Matter . | . . . . . Retrieved Matter . | . . . . . Retrieved Components . | . . . . . Parts Scanalyzed . | . . . . . Part Schematics Acquired . | . . . . . Parts Damaged . | . . . . . Bothacking | -11 -10 -9 -9 -8 ------------ Run | Yrd Mat Mat Min Mat Used RIF Installer . | . . . . . Robots Hacked . | . . . . . Non-combat . | . . . . . Combat . | . . . . . Robot Hacks Applied . | . . . . . Relay Couplers Released . | . . . . . Fabnet Peak Effective % . | . . . . . Robots Rewired . | . . . . . Allies Hacked . | . . . . . Hacks Repelled . | . . . . . Allies | -11 -10 -9 -9 -8 -------- Run | Yrd Mat Mat Min Mat Total Allies 3 | . . . 3 . Largest Group 3 | . . . 3 3 Highest-Rated Group 40 | . . . 40 40 Highest-Rated Ally 16 | . . . 16 16 Total Orders . | . . . . . Ally Attacks . | . . . . . Total Damage . | . . . . . Kills . | . . . . . Allies Corrupted . | . . . . . Allies Melted . | . . . . . Intel | -11 -10 -9 -9 -8 ------- Run | Yrd Mat Mat Min Mat Active Infowar (turns) 599 | 9 69 36 235 250 Sensors 189 | . . . . 189 Terrain 599 | 9 69 36 235 250 Robot Analysis Total . | . . . . . Derelict Logs Recovered 2 | . . . 2 . Drone Launches . | . . . . . Drone Recoveries . | . . . . . Exploration | -11 -10 -9 -9 -8 ------------- Run | Yrd Mat Mat Min Mat Turns Passed 780 | 96 130 69 235 250 Spaces Moved 734 | 56 134 83 298 163 Core 112 | 56 56 . . . Treads . | . . . . . Legs 35 | . . . . 35 Wheels . | . . . . . Hover 574 | . 78 83 298 115 Flight 13 | . . . . 13 Fastest Speed 42 | 50 50 56 56 42 Average Speed 59 | 50 53 56 56 76 Slowest Speed 205 | 50 60 56 56 205 Overloaded Moves . | . . . . . Propulsion Burnouts . | . . . . . Robots Hopped 1 | . . . . 1 Potential Cave-ins . | . . . . . Cave-ins Triggered 1 | . . . . 1 Exploration Rate (%) 29 | 3 26 10 87 20 Regions Visited 4 Branch Regions 1 Pre-discovered Areas . | . . . . . Known Exits Taken 1 | . . . 1 . Unknown Exits Taken 3 | 1 1 1 . . Scrap Searched 2 | . . . 2 . Spaces Dug 4 | . . . . 4 Terrain Destroyed 4 | . . . . 4 Melee 4 | . . . . 4 Projectile . | . . . . . AOE . | . . . . . Terrain Rammed . | . . . . . Walls Destroyed . | . . . . . Machines Disabled . | . . . . . Actions | -11 -10 -9 -9 -8 --------- Run | Yrd Mat Mat Min Mat Total 983 | 81 168 104 352 278 Wait 171 | . 15 19 44 93 Move 728 | 55 133 82 297 161 Hop 1 | . . . . 1 Pick Up 10 | 1 1 1 3 4 Fast Attach 17 | 4 3 1 2 7 Attach 2 | . 1 . . 1 Detach . | . . . . . Swap 1 | . . 1 . . Drop 8 | 1 1 . . 6 Fire 40 | 20 14 . 6 . Melee 5 | . . . . 5 Ram . | . . . . . Kick . | . . . . . Crush . | . . . . . Escape Stasis . | . . . . . Rewire . | . . . . . Trap . | . . . . . Miscellaneous . | . . . . . Route ------- -11/Scrapyard -10/Materials -9/Materials -9/Mines (discovered 2 exits: *Mat x2) -8/Materials (discovered 1 exit: Fac) History --------- Turn | Location | Event 3 | -11/Scrapyard | Discovered new exit (range 15) 97 | -11/Scrapyard | Entered Materials 218 | -10/Materials | Discovered new exit (range 11) 227 | -10/Materials | Entered another Materials area 227 | -9/Materials | Evolved 2 slots: Propulsion x1, Utility x1 265 | -9/Materials | Discovered new exit (range 16) 296 | -9/Materials | Entered Mines 300 | -9/Mines | Build established: Mutant 308 | -9/Mines | Learned location of 1 exit from Materials 345 | -9/Mines | Discovered new exit (range 12) 350 | -9/Mines | Identified exit to Materials 355 | -9/Mines | Assisted by bots powering up and referring to "LRC-V3" 360 | -9/Mines | Met a Derelict bent on vengeance 531 | -9/Mines | Entered Materials 531 | -8/Materials | Accompanied by 3 allies 531 | -8/Materials | Evolved 2 slots: Propulsion x1, Weapon x1 532 | -8/Materials | Identified exit to Factory 603 | -8/Materials | Crushed by falling debris 781 | -8/Materials | Self-destructed Last Messages --------------- 00681_ 52E0W4P/3&SA5#ZDR3,XF#/3P2 00703_ System corrupted: Matter fused (-9). 00721_ Acquired Imp. Light Armor Plating. 00726_ System corrupted: Matter fused (-7). 00730_ Acquired VSS Leg. 00749_ O-16 Technician: "IFF HANDSHAKE FAILED. SECURING TERMINAL." 00752_ O-16 Technician sends out distress signal. 00753_ Acquired Prototype Flight Unit. 00753_ Identified Imp. VTOL Module. 00753_ Faulty integration triggers meltdown. 00753_ Imp. Sensor Array damaged (-5). 00753_ Imp. Signal Interpreter damaged (-8). 00757_ Hover Unit destroyed. 00760_ System corrupted: Component data lost. 00765_ Acquired Cesium-ion Thruster. 00771_ Acquired Imp. VTOL Module. 00772_ Dropped Imp. Sensor Array. 00781_ Cesium-ion Thruster destroyed. Map ----- +----------------------------------------------------+ | ?????# [[#??????????????????????????????????????? | | ?????# #??????????? ??????????????????????????? | | ?????#[ #??????????????????????????????????????? | | ?????# [#??????? ??????????????????????????????? | | ?????# #? ??? ? ? ????????????????????????????? | | ?????#[ #??#???????????????????????????????????? | | #????# #?##?#??????#??????????????????????????? | | ?????###+###????#?#?????? ???????????????????????? | | ###??# #?????#??#????????????????????????????? | | ?#?#?# #####???#?????????????????????????????? | | ???#?# #?????#???????????????????????????? | | ?????# ### #???#?????????????????????????????? | | ???### #?# #?????????????????????????????????? | | ?????### ###?# #?????????????????????????????????? | | ?#?????# #???# #????##???????????????????????????? | | ?#?????# #?#?# #?????#???????????????????????????? | | ####???# #???# ##???#?#??????????????????????????? | | ##"#####+##### #??##???????##????????????????????? | | !!"## # #?????#???#???????????????????????? | | !##" """" # #???????#?????????????????????????? | | ==### ! """" # ##????????????????????????????????? | | ==### """" # ##########????????????????????????? | | ]]###= # T #????????????????????????? | | ]]### """" + ^ ######???????????????????? | | ###?#! """" # # g #???????????#???????? | | ????# """" ###a ;@ " #?#??????? ???#?????? | | ?#??# ! ???# # Tg#???????????????????? | | ?#??########?#?# # " #???????????????????? | | ??????#???? ???# # #??#????????????????? | | ? ? ??????????## """ # #??????????#????????? | | ?????? ??????? """ # #???????????????????? | | ???????????? """ # #???????????????????? | | ??????????? # !#???????????????????? | | ?????????? ######???????????????????? | | ????#???? """ ! #????????????????????????? | | ?????????? """ #????????????????????????? | | ?????????? """ ?????????##?????????????? | | ???????????? ? ?? ????????????????????? | | ???????????? [?? ????????????????????????? | | ????????????? ?? ????????????????????????? | | ???????????????###??#####????????????????????????? | | ?????????????????????????????????????????????????? | | ?????????????????????????????????????????????????? | | ????????????????????????????????#????????????????? | | ?????????????????????????????????????????????????? | | ?????????????????????????????????????????????????? | | ?????????????????????????????????????????????????? | | ?????????????????????????????????????????????????? | | ?????????????????????????????????????????????????? | | ?????????????????????????????????????????????????? | +----------------------------------------------------+ Best States ------------- Heat Dissipation 31 Energy Generation 14 Energy Capacity 250 Matter Stores 300 Matter Capacity 300 Sight Range 16 Robot Scan Range 15 Terrain Scan Range 16 Terrain Scan Density 10 Evasion (%) 57 Item Schematics ----------------- None Robot Schematics ------------------ None Fabricated ------------ Nothing Repaired ---------- Nothing Studied --------- None Alien Tech Used ----------------- None Achievements -------------- None Challenges ------------ None Game ------ Seed CatalystRelaySpecial Manual? 0 Play Time 00:09:58 Cumulative 47.8 hours Start 2026.09.02 @ 07:11:41 End 2026.09.02 @ 07:19:32 Sessions 1 Manual Loads 0 Difficulty Rogue Special Mode None Game No. 123 Rogue 123 Adventurer 0 Explorer 0 Win Type - Total 3 Types 3/0/0/0/0/0/0/0/0/0 Lore% 46 Gallery% 38 Achievement% 41 Wizard Run 0 Options --------- Layout 2 ASCII 0 Keyboard 0 Movement Arrows Keybinds 0 Fullscreen 1 Font 16/SmallcapsGlow Map View 50x49 Zoom Use 0% Tactical HUD 1 Map Filters NONE Filters NONE Steam SD RUN: 3d8e5a52-12d4-4f3a-afd5-1df3f765e55a